Cogmind - Beta 16.1 *** ADVENTURER MODE // 2026.03.06 @ 12:14:08 Player: Ms. V3-11A Result: Destroyed by Autobeam Turret with Autobeam Performance ------------- Evolutions (0) 0 Regions Visited (2) 400 Robots Destroyed (33) 165 Value Destroyed (804) 804 Prototype IDs (4) 80 Alien Tech Used (0) 0 Bonus (0) 0 TOTAL SCORE: 1449 Bonus ------- None Cogmind --------- Core Integrity 0/250 Matter 227/300 Energy 250/250 System Corruption 0% Temperature Cool (6) Movement Treading (240) Ox1 Location -10/Subcaves Parts ------- > --- POWER (1) -------- Ion Engine > --- PROPULSION (2) --- Light Treads Light Treads > --- UTILITY (2) ------ High-capacity Storage Unit Makeshift Light Armor Plating > --- WEAPON (2) ------- Subdweller Beam Cannon Subdweller Machine Gun > --- INVENTORY (20) --- Ion Engine Light Ion Engine Aluminum Leg Aluminum Leg Disposable Heat Sink Disposable Heat Sink Large Storage Unit High-capacity Battery (250) Large Matter Pod (150) Subdweller Optics Targeting Computer EM Pulse Gun Medium Laser Small Laser Subdweller Laser Assault Rifle Assault Rifle Battle Cannon Grenade Launcher Peak State ------------ > --- POWER ------------ Ion Engine > --- PROPULSION ------- Light Treads Light Treads > --- UTILITY ---------- High-capacity Storage Unit Makeshift Light Armor Plating > --- WEAPON ----------- Subdweller Laser Subdweller Beam Cannon > --- INVENTORY -------- Ion Engine Light Ion Engine Aluminum Leg Aluminum Leg Disposable Heat Sink Disposable Heat Sink Large Storage Unit High-capacity Battery Large Matter Pod Visual Processing Unit Subdweller Optics Targeting Computer EM Pulse Gun Medium Laser Small Laser Assault Rifle Assault Rifle Subdweller Machine Gun Grenade Launcher [Rating: 14] Favorites ----------- Power Ion Engine Engine Ion Engine Propulsion Light Treads Treads Light Treads Leg Aluminum Leg Utility High-capacity Storage Unit Device Disposable Heat Sink Storage High-capacity Storage Unit Protection Light Armor Plating Weapon Light Assault Rifle Energy Gun Medium Laser Energy Cannon Subdweller Beam Cannon Ballistic Gun Light Assault Rifle Launcher Grenade Launcher Build | -11 -10 -10 ------- Run | Yrd Mat Sub Slots Evolved . | . . . Power . | . . . Propulsion . | . . . Utility . | . . . Weapon . | . . . Parts Attached 18 | . 7 11 Power 3 | . 2 1 Engine 3 | . 2 1 Core . | . . . Reactor . | . . . Propulsion 5 | . 2 3 Treads 3 | . . 3 Leg 2 | . 2 . Wheel . | . . . Hover . | . . . Flight . | . . . Utility 5 | . 3 2 Device 1 | . . 1 Storage 2 | . 2 . Processor . | . . . Hackware . | . . . Protection 2 | . 1 1 Artifact . | . . . Weapon 5 | . . 5 Energy Gun 2 | . . 2 Energy Cannon 1 | . . 1 Ballistic Gun 1 | . . 1 Ballistic Cannon . | . . . Launcher 1 | . . 1 Special Weapon . | . . . Impact Weapon . | . . . Slashing Weapon . | . . . Piercing Weapon . | . . . Special Melee Weapon . | . . . Unidentified Prototypes . | . . . Parts Lost 4 | . 1 3 Power 2 | . 1 1 Propulsion 1 | . . 1 Utility 1 | . . 1 Weapon . | . . . Highest Loss Streak 2 | . 1 2 To Critical Strikes . | . . . Average Backups 17 | 5 12 19 Power 2 | 1 1 2 Propulsion 3 | 3 3 3 Utility 5 | . 3 6 Weapon 5 | 1 4 6 Tool/Special . | . . . Unused Backups 21 | . 5 16 Power 2 | . 1 1 Propulsion 5 | . 4 1 Utility 8 | . . 8 Weapon 6 | . . 6 Tool/Special . | . . . Average Slot Usage (%) 99 | . 97 99 Engine 13 | . 13 14 Treads 16 | . . 24 Leg 11 | . 28 3 Device 4 | . . 6 Storage 14 | . 14 14 Protection 8 | . 12 7 Energy Gun 13 | . 14 13 Energy Cannon 4 | . . 6 Ballistic Gun 9 | . 14 7 Peak Build Rating 14 | 6 9 14 Average Rating 9 | 6 7 10 On Entrance 6 | 6 6 8 Avg Prop Armor Cover (%) . | . . . Naked Turns . | . . . Heaviest Build 61 | 11 51 61 Greatest Support 40 | 20 20 40 Greatest Overweight (x) 2 | . 2 2 Average Overweight (x) 1 | . 1 1 Largest Inventory Capacity 20 | 8 20 20 Average Capacity 18 | 8 16 20 Most Carried 20 | 5 19 20 Average Carried 17 | 5 12 19 Final Capacity 20 | 8 20 20 Final Carried 19 | 4 17 19 Class Distribution -------------------- 100% | Mutant Dominant Class ---------------- Mutant | -10/Materials Mutant | -10/Subcaves Resources | -11 -10 -10 ----------- Run | Yrd Mat Sub Matter Collected 576 | 193 264 119 Remotely . | . . . Salvage Created 966 | . 502 464 Parts 62 | . 31 31 Haulers Intercepted 2 | . 2 . Recyclers Shooed . | . . . Parts Field Recycled . | . . . Retrieved Matter . | . . . Parts Self-Destructed 29 | . . 29 Prevented . | . . . Parts Restored . | . . . Kills | -11 -10 -10 ------- Run | Yrd Mat Sub Combat Hostiles Destroyed 28 | . 12 16 Guns 18 | . 12 6 Cannons 7 | . . 7 AOE 3 | . . 3 Classes Destroyed 6 | . 4 2 Hauler 2 | . 2 . Turret 1 | . . 1 Watcher 2 | . 2 . Swarmer 12 | . 6 6 Grunt 8 | . 6 2 Subdweller 8 | . . 8 Best Kill Streak 4 | . 4 3 Combat Bots Only 3 | . 3 3 Max Kills in Single Turn 2 | . 2 1 Gunslinging 1 | . 1 . Exploded 1 | . . 1 Melee . | . . . Uniques/NPCs Destroyed . | . . . Combat | -11 -10 -10 -------- Run | Yrd Mat Sub Hostile Shots Fired 202 | . 48 154 Missed 74 | . 11 63 Hits 128 | . 37 91 Projectile 128 | . 37 91 AOE 2 | . . 2 Critical Strikes 1 | . . 1 Damage Taken 1285 | . 345 940 Core 251 | . 50 201 Absorbed by Shields . | . . . Ignored by Resistances 391 | . 112 279 Regen/Repaired (Parts) 85 | . 85 . Core Remaining (%) 100 | 100 . . Volleys Fired 109 | . 42 67 Largest 2 | . 2 2 Hottest 140 | . 70 140 Shots Fired 201 | . 84 117 Gun 174 | . 84 90 Cannon 24 | . . 24 Launcher 3 | . . 3 Special . | . . . Kinetic 75 | . 42 33 Thermal 123 | . 42 81 Explosive 3 | . . 3 Electromagnetic . | . . . Robot Hit Streak 38 | . 14 38 Robot Miss Streak 3 | . 3 3 Penetration Max . | . . . Secondary Targets 4 | . 2 2 Max Gunslinging Chain 1 | . 1 1 Shots Hit Robots 151 | . 61 90 Core Hits 55 | . 26 29 Critical Kills 1 | . 1 . Critical Parts Destroyed 3 | . 2 1 Critical Strikes 9 | . 4 5 Burn 4 | . 1 3 Destroy 5 | . 3 2 Melee Attacks . | . . . Impact . | . . . Slashing . | . . . Piercing . | . . . Sneak Attacks . | . . . Combat Hostiles . | . . . Follow-up Attacks . | . . . Damage Inflicted 2157 | . 652 1505 Guns 1566 | . 648 918 Cannons 442 | . . 442 Explosions 145 | . . 145 Melee . | . . . Ramming 4 | . 4 . Kinetic 564 | . 231 333 Thermal 1444 | . 417 1027 Explosive 145 | . . 145 Electromagnetic . | . . . Impact . | . . . Slashing . | . . . Piercing . | . . . Highest Corruption . | . . . Average Corruption . | . . . Corruption Purged . | . . . Corruption Blocked . | . . . Overload Shots . | . . . Overflow Damage . | . . . Projectiles . | . . . Explosions . | . . . Melee . | . . . Knockbacks . | . . . Impact . | . . . Kinetic . | . . . Secondary . | . . . Self-Inflicted Damage . | . . . Shots . | . . . Rammed . | . . . Targets Rammed 2 | . 2 . Kicked 2 | . 2 . Crushed . | . . . Highest Temperature 224 | . 224 165 Average Temperature 55 | . 67 36 Received Heat Transfer 549 | . 159 390 Siege Activations . | . . . Martial Activations . | . . . Shielding Activations . | . . . Robots Disrupted . | . . . Combat Hostiles . | . . . Robots Corrupted . | . . . Combat Hostiles . | . . . Parts Fried . | . . . Impact Corruptions . | . . . Robots Melted . | . . . Combat Hostiles . | . . . Parts Melted 5 | . 4 1 Heat Transferred 3286 | . 1295 1991 Parts Sabotaged . | . . . Parts Stolen . | . . . Parts Stripped . | . . . Power Chain Reactions . | . . . Alert | -11 -10 -10 ------- Run | Yrd Mat Sub Maximum Alert Level . | . . . Low Security (%) 100 | 100 100 . Level 1 . | . . . Level 2 . | . . . Level 3 . | . . . Level 4 . | . . . Level 5 . | . . . High Security . | . . . Max Security . | . . . Peak Influence 71 | . 71 . Initial . | . . . Average 15 | . 15 . Influence Increases 604 | . 344 260 Destroy 0b10 Robot/C 420 | . 240 180 Destroy 0b10 Robot/NC 20 | . 20 . Destroy Leader 68 | . 48 20 Successful Hack 21 | . 21 . Lose Combat Pursuer 75 | . 15 60 Influence Decreases 484 | . 344 140 Time Decay 484 | . 344 140 Squads Dispatched 1 | . 1 . Investigation 1 | . 1 . Extermination . | . . . Reinforcement . | . . . Assault . | . . . Garrison . | . . . Intercept . | . . . Searches Triggered . | . . . Construction Impeded . | . . . Haulers Reinforced . | . . . Active Scanning Responses . | . . . Cargo Convoy Interrupts . | . . . Stealth | -11 -10 -10 --------- Run | Yrd Mat Sub Distress Signals 2 | . 2 . Communications Jammed . | . . . Distress Signals . | . . . Times Spotted 40 | . 21 19 Peak Tracking Total 5 | . 4 5 Tactical Retreats 3 | . 1 2 Traps | -11 -10 -10 ------- Run | Yrd Mat Sub Traps Triggered 4 | . 4 . Indirectly . | . . . Trap Hack Attempts . | . . . Triggered . | . . . Disarmed . | . . . Reprogrammed . | . . . Reused . | . . . Traps Extracted . | . . . Installed . | . . . Triggered . | . . . Machines | -11 -10 -10 ---------- Run | Yrd Mat Sub Machines Disabled . | . . . Max in Single Turn . | . . . Machines Repaired . | . . . Machines Dismantled . | . . . Machines Sabotaged . | . . . Overloaded Fab Kills . | . . . Hacking | -11 -10 -10 --------- Run | Yrd Mat Sub Machines Accessed 9 | . 9 . Terminals 7 | . 7 . Fabricators . | . . . Repair Stations 1 | . 1 . Recycling Units 1 | . 1 . Scanalyzers . | . . . Garrison Access . | . . . Total Hacks 27 | . 27 . Successful 18 | . 18 . Failed 9 | . 9 . Catastrophic . | . . . Database Lockouts . | . . . Manual 15 | . 15 . Terminals 23 | . 23 . Fabricators . | . . . Repair Stations 2 | . 2 . Recycling Units 2 | . 2 . Scanalyzers . | . . . Garrison Access . | . . . Terminal Hacks 10 | . 10 . Record 2 | . 2 . Robot Analysis 2 | . 2 . Prototype ID Bank 4 | . 4 . Registered Components 1 | . 1 . Zone Layout 1 | . 1 . Fabricator Hacks . | . . . Repair Station Hacks 2 | . 2 . Scan Component 1 | . 1 . Repair 1 | . 1 . Recycling Unit Hacks 1 | . 1 . Retrieve Components 1 | . 1 . Scanalyzer . | . . . Garrison Access Hacks . | . . . Unauthorized Hacks 5 | . 5 . Terminals 5 | . 5 . Botnet 5 | . 5 . Fabricators . | . . . Repair Stations . | . . . Recycling Units . | . . . Scanalyzers . | . . . Garrison Access . | . . . Data Cores Recovered . | . . . Used . | . . . Hacking Detections 9 | . 9 . Full Trace Events . | . . . Feedback Events . | . . . Feedback Blocked . | . . . Robot Schematics Acquired . | . . . Robots Built . | . . . Authchips . | . . . Time . | . . . Total Robot Build Rating . | . . . Part Schematics Acquired . | . . . Parts Built . | . . . Authchips . | . . . Time . | . . . Total Part Build Rating . | . . . Part Studies Acquired . | . . . Parts Repaired 1 | . 1 . Time 26 | . 26 . Parts Recycled . | . . . Recycled Matter . | . . . Retrieved Matter . | . . . Retrieved Components 9 | . 9 . Parts Scanalyzed . | . . . Part Schematics Acquired . | . . . Parts Damaged . | . . . Bothacking | -11 -10 -10 ------------ Run | Yrd Mat Sub Used RIF Installer . | . . . Robots Hacked . | . . . Non-combat . | . . . Combat . | . . . Robot Hacks Applied . | . . . Relay Couplers Released . | . . . Fabnet Peak Effective % . | . . . Robots Rewired . | . . . Allies Hacked . | . . . Hacks Repelled . | . . . Allies | -11 -10 -10 -------- Run | Yrd Mat Sub Total Allies . | . . . Largest Group . | . . . Highest-Rated Group . | . . . Highest-Rated Ally . | . . . Total Orders . | . . . Ally Attacks . | . . . Total Damage . | . . . Kills . | . . . Allies Corrupted . | . . . Allies Melted . | . . . Intel | -11 -10 -10 ------- Run | Yrd Mat Sub Active Infowar (turns) . | . . . Robot Analysis Total 2 | . 2 . Derelict Logs Recovered 2 | . . 2 Drone Launches . | . . . Drone Recoveries . | . . . Exploration | -11 -10 -10 ------------- Run | Yrd Mat Sub Turns Passed 4307 | 1 1356 2950 Spaces Moved 1686 | 1 553 1132 Core . | . . . Treads 1006 | . . 1006 Legs 680 | 1 553 126 Wheels . | . . . Hover . | . . . Flight . | . . . Fastest Speed 120 | 120 120 240 Average Speed 231 | 120 211 242 Slowest Speed 260 | 120 260 260 Overloaded Moves . | . . . Propulsion Burnouts . | . . . Robots Hopped . | . . . Potential Cave-ins . | . . . Cave-ins Triggered . | . . . Exploration Rate (%) 54 | 2 89 71 Regions Visited 2 Branch Regions 1 Pre-discovered Areas . | . . . Known Exits Taken . | . . . Unknown Exits Taken 2 | 1 1 . Scrap Searched 2 | . . 2 Spaces Dug . | . . . Terrain Destroyed 21 | . . 21 Melee . | . . . Projectile 2 | . . 2 AOE 19 | . . 19 Terrain Rammed . | . . . Walls Destroyed . | . . . Machines Disabled . | . . . Actions | -11 -10 -10 --------- Run | Yrd Mat Sub Total 1898 | 2 665 1231 Wait 42 | . 42 . Move 1684 | . 552 1132 Hop . | . . . Pick Up 25 | . 14 11 Fast Attach 5 | . 3 2 Attach 4 | . 1 3 Detach 1 | . . 1 Swap 11 | . 4 7 Drop 15 | 2 5 8 Fire 109 | . 42 67 Melee . | . . . Ram . | . . . Kick 2 | . 2 . Crush . | . . . Escape Stasis . | . . . Rewire . | . . . Trap . | . . . Miscellaneous . | . . . Route ------- -11/Scrapyard -10/Materials (discovered 5 exits: [*Mat x2] / [*Min x2] / [*Sub]) -10/Subcaves (discovered 1 exit: [*Mat]) History --------- Turn | Location | Event 2 | -11/Scrapyard | Discovered new exit (range 0) 2 | -11/Scrapyard | Entered Materials 302 | -10/Materials | Build established: Mutant 461 | -10/Materials | Discovered new exit (range 15) 623 | -10/Materials | Discovered new exit (range 16) 785 | -10/Materials | Discovered new exit (range 6) 907 | -10/Materials | Discovered new exit (range 11) 982 | -10/Materials | Discovered new exit (range 14) 1237 | -10/Materials | Repaired Lgt. Armor Plating 1358 | -10/Materials | Entered Subcaves 1359 | -10/Subcaves | Approached by a straggling Scientist 2852 | -10/Subcaves | Core integrity fell below 50% 3716 | -10/Subcaves | Core integrity fell below 20% 4025 | -10/Subcaves | Shifting Twisted Machinery released Battle Cannon 4031 | -10/Subcaves | Discovered new exit (range 11) 4210 | -10/Subcaves | Learned Materials terminal intel 4259 | -10/Subcaves | Shifting Twisted Machinery released Piercing Trap 4308 | -10/Subcaves | Destroyed by Autobeam Turret with Autobeam Last Messages --------------- 04116_ S-10 Pest destroyed. 04118_ Subatomizers dissect the Lgt. Assault Rifle. 04119_ S-10 Pest destroyed. 04121_ Lgt. Ion Engine fries itself beyond repair. 04122_ S-10 Pest suffers critical hit (Destroy). 04122_ Destroyed Flight Unit. 04125_ S-10 Pest destroyed. 04129_ Flight Unit fries itself beyond repair. 04132_ Lgt. Assault Rifle fries itself beyond repair. 04132_ Lgt. Ion Engine fries itself beyond repair. 04133_ Lgt. Assault Rifle fries itself beyond repair. 04147_ Dropped Visual Processing Unit. 04156_ Subatomizers dissect the Visual Processing Unit. 04210_ Acquired derelict log, extracted data. Data stored: Materials terminal intel. Piercing Trap falls loose from the Twisted Machinery. 04262_ S-10 Pest destroyed. 04286_ Acquired 1 matter. 04289_ Flight Unit fries itself beyond repair. 04301_ Autobeam Turret destroyed. Map ----- +----------------------------------------------------+ | #????## #????## ###???# ### | | #????# #?????# ##?????# ## #?# | | #????# #?????###??????## ###### #?# & | | ##???## ##???????????????##?????####?# ### | | #?#### #???????????????????????????## ###?# | | #?# # #????????????????????????????###???? | | ## ### # ##??????????????????????????????????? | | ?# ## ##??????????????????????????????????? | | ?# #??????????????????????????????????# | | ?## ## #?????????????????????????????????## | | ??####### #????????????????????????????????## | | ????????#######????????????????????????????????# | | ???????????????????????????????????????????????# | | ?????????????????????????????????????????????### | | ?????????????????????????????????????????????# | | ?????????????????????????????????????????????# | | ????????????????????????????????????????????## | | ???????????????????????????????????????????## | | ???????????????????????????????????????????# % | | ???????????????????????????????????????????## # | | ????????????????##???###????????????????????# ## | | ??????????????### #### ##??????####?????????# ""#? | | ?????????## ### # ###### ### ??????# ""## | | ????????? ** [ " t???# # | | ????????? < < &%%&[& % ???## ""# | | ????????????????# @=*%%&* % ????## # | | ???????# ??????# < < # #????????# " # | | ???? # "#### #########????????## # | | ??????????# #??##???????????????## | | ???????# ## #????????????????#### | | ???????# ^ ^ ??## #???????????###??#"" | | ??????# ###????# ##########?## #### % | | ?????# ????????# ## ## # ### ## " | | ?????? ???????# ## % """ | | ????????????????# ## """""""## | | ????????????# ## # # ####""""""### | | ????????????## ### ####### ##??#""#####?# | | ?????????????## #??###?????# ##???#""#?????# | | ??????????????######???????????#####????####?????# | | ?????????????????????????????????????????????????? | | ?????????????????????????????????????????????????? | | ?????????????????????????????????????????????????? | | ?????????????????????????????????????????????????? | | ?????????????????????????????????????????????????? | | ?????????????????????????????????????????????????? | | ?????????????????????????????????????????????????? | | ?????????????????????????????????????????????????? | | ?????????????????????????????????????????????????? | | ?????????????????????????????????????????????????? | | ?????????????????????????????????????????????????? | +----------------------------------------------------+ Best States ------------- Heat Dissipation 25 Coolant Potential 50 Energy Generation 10 Energy Capacity 250 Matter Stores 300 Matter Capacity 300 Sight Range 16 Terrain Scan Density 10 Armor Coverage 150 Resistance: KI 20 Resistance: TH 20 Resistance: EX 20 Resistance: EM 20 Resistance: I 20 Resistance: S 20 Resistance: P 20 Evasion (%) 40 Recoil Reduction 2 Offensive Hacking 10 Item Schematics ----------------- None Robot Schematics ------------------ None Fabricated ------------ Nothing Repaired ---------- Lgt. Armor Plating | 5% | -10/Materials Studied --------- None Alien Tech Used ----------------- None Achievements -------------- None Challenges ------------ None Game ------ Seed ReflexPersonalTurretformer Manual? 0 Play Time 00:17:44 Cumulative 464.3 hours Start 2026.03.06 @ 11:57:19 End 2026.03.06 @ 12:14:08 Sessions 1 Manual Loads 0 Difficulty Adventurer Special Mode None Game No. 340 Rogue 63 Adventurer 251 Explorer 26 Win Type - Total 2 Types 2/0/0/0/0/0/0/0/0/0 Lore% 83 Gallery% 70 Achievement% 49 Wizard Run 0 Options --------- Layout 2 ASCII 0 Keyboard 0 Movement Mouse Keybinds 0 Fullscreen 0 Font 16/Cog Map View 64x51 Zoom Use 0% Tactical HUD 1 Map Filters NONE Filters BRIGHTNESS(115)|SATURATION(100)|LOW_CONTRAST(0,16,30) Steam 1 RUN: 91326b76-4af0-4c65-8c33-ab34d102c129